[Event "Early-Titled-Tuesday-Blitz-September-05-2023"]
[Site "Chess.com"]
[Date "2023.09.05"]
[Round "9"]
[White "FormerProdigy"]
[Black "DenLaz"]
[Result "0-1"]
[WhiteElo "2902"]
[BlackElo "3076"]
[TimeControl "180+1"]
[EndTime "9:41:48 PDT"]
[Termination "DenLaz won by checkmate"]

1. d4 {[%clk 0:03:00.9]} 1... Nf6 {[%clk 0:02:58.5]} 2. c4 {[%clk 0:03:01.4]}
2... e6 {[%clk 0:02:58.9]} 3. Nc3 {[%clk 0:03:01.1]} 3... Bb4 {[%clk 0:02:59.2]}
4. e3 {[%clk 0:03:01.1]} 4... O-O {[%clk 0:02:59.4]} 5. Bd3 {[%clk 0:03:01.7]}
5... d5 {[%clk 0:02:59.7]} 6. cxd5 {[%clk 0:03:02.6]} 6... exd5 {[%clk
0:02:58.7]} 7. Ne2 {[%clk 0:03:03.1]} 7... Re8 {[%clk 0:02:58.6]} 8. O-O {[%clk
0:03:02.9]} 8... Bd6 {[%clk 0:02:58.1]} 9. f3 {[%clk 0:02:55.3]} 9... c5 {[%clk
0:02:57.9]} 10. Nb5 {[%clk 0:02:54.8]} 10... Bf8 {[%clk 0:02:56.1]} 11. dxc5
{[%clk 0:02:52.8]} 11... Bxc5 {[%clk 0:02:55.7]} 12. Nbd4 {[%clk 0:02:49.6]}
12... Nc6 {[%clk 0:02:55.7]} 13. Bd2 {[%clk 0:02:37.2]} 13... Qb6 {[%clk
0:02:53.3]} 14. Qb3 {[%clk 0:02:29.8]} 14... Nxd4 {[%clk 0:02:26.2]} 15. exd4
{[%clk 0:02:19.9]} 15... Bxd4+ {[%clk 0:02:25.3]} 16. Nxd4 {[%clk 0:02:20.8]}
16... Qxd4+ {[%clk 0:02:25.9]} 17. Kh1 {[%clk 0:02:21.7]} 17... Bf5 {[%clk
0:02:19.1]} 18. Bxf5 {[%clk 0:02:20.7]} 18... Qxd2 {[%clk 0:02:19.1]} 19. Qxb7
{[%clk 0:02:14.1]} 19... Rab8 {[%clk 0:02:16.7]} 20. Qxa7 {[%clk 0:02:14.3]}
20... Rxb2 {[%clk 0:02:16.8]} 21. Bh3 {[%clk 0:01:59.6]} 21... g6 {[%clk
0:02:05.5]} 22. a4 {[%clk 0:01:51.2]} 22... Re2 {[%clk 0:01:58.5]} 23. Rad1
{[%clk 0:01:46.5]} 23... Qg5 {[%clk 0:01:34.8]} 24. f4 {[%clk 0:01:12.1]} 24...
Qh4 {[%clk 0:01:31.9]} 25. Qa8+ {[%clk 0:00:46.3]} 25... Kg7 {[%clk 0:01:28.7]}
26. Qc8 {[%clk 0:00:46.8]} 26... Ne4 {[%clk 0:01:12]} 27. Kg1 {[%clk 0:00:44.9]}
27... Nf2 {[%clk 0:01:02.2]} 28. Qc3+ {[%clk 0:00:44.3]} 28... Kh6 {[%clk
0:00:38.3]} 29. Rxf2 {[%clk 0:00:14.8]} 29... Qxf2+ {[%clk 0:00:31.4]} 30. Kh1
{[%clk 0:00:15.2]} 30... Rbd2 {[%clk 0:00:30]} 31. Rg1 {[%clk 0:00:11.9]} 31...
Qxg1+ {[%clk 0:00:30.3]} 32. Kxg1 {[%clk 0:00:12.8]} 32... Re1# {[%clk
0:00:30.9]} 0-1

[Event "Early-Titled-Tuesday-Blitz-September-05-2023"]
[Site "Chess.com"]
[Date "2023.09.05"]
[Round "9"]
[White "Doudou2015"]
[Black "KorolDimitriy75"]
[Result "1-0"]
[WhiteElo "2192"]
[BlackElo "2301"]
[TimeControl "180+1"]
[EndTime "9:41:50 PDT"]
[Termination "Doudou2015 won on time"]

1. b3 {[%clk 0:02:48.1]} 1... c5 {[%clk 0:02:57]} 2. Bb2 {[%clk 0:02:49]} 2...
Nc6 {[%clk 0:02:56.9]} 3. e3 {[%clk 0:02:49.9]} 3... d6 {[%clk 0:02:56.6]} 4. f4
{[%clk 0:02:50.8]} 4... e5 {[%clk 0:02:39.5]} 5. fxe5 {[%clk 0:02:51.6]} 5...
dxe5 {[%clk 0:02:39.4]} 6. Nf3 {[%clk 0:02:51.9]} 6... Bd6 {[%clk 0:02:25]} 7.
Bb5 {[%clk 0:02:51.9]} 7... f6 {[%clk 0:02:07.1]} 8. O-O {[%clk 0:02:42.6]} 8...
Ne7 {[%clk 0:02:06.7]} 9. Bc4 {[%clk 0:02:30.6]} 9... Na5 {[%clk 0:02:00.2]} 10.
Qe2 {[%clk 0:02:26.7]} 10... Nxc4 {[%clk 0:01:15.8]} 11. Qxc4 {[%clk 0:02:27.5]}
11... Nc6 {[%clk 0:00:49.8]} 12. d4 {[%clk 0:02:17.5]} 12... Qe7 {[%clk
0:00:19.7]} 13. dxe5 {[%clk 0:02:14.6]} 13... Nxe5 {[%clk 0:00:13.1]} 14. Nxe5
{[%clk 0:02:13.8]} 14... Bxe5 {[%clk 0:00:13.3]} 15. Bxe5 {[%clk 0:02:13.3]}
15... Qxe5 {[%clk 0:00:14.2]} 16. Nc3 {[%clk 0:02:00.8]} 16... Be6 {[%clk
0:00:13.3]} 17. Qb5+ {[%clk 0:02:00.2]} 17... Bd7 {[%clk 0:00:08.9]} 18. Qxb7
{[%clk 0:01:51.9]} 18... Rb8 {[%clk 0:00:03.8]} 19. Qxa7 {[%clk 0:01:51.4]}
19... O-O {[%clk 0:00:01.9]} 20. Qxd7 {[%clk 0:01:40.1]} 20... Qxe3+ {[%clk
0:00:02.2]} 21. Kh1 {[%clk 0:01:26.1]} 21... Qxc3 {[%clk 0:00:03.1]} 22. Qd5+
{[%clk 0:01:13.3]} 22... Kh8 {[%clk 0:00:03.1]} 23. Qd3 {[%clk 0:01:14.1]} 23...
Qb2 {[%clk 0:00:02.7]} 24. a4 {[%clk 0:00:52.2]} 24... Rfd8 {[%clk 0:00:02.5]}
25. Qc4 {[%clk 0:00:51.7]} 25... Rbc8 {[%clk 0:00:01.6]} 26. a5 {[%clk
0:00:38.8]} 26... Qe5 {[%clk 0:00:01.4]} 27. a6 {[%clk 0:00:31.6]} 27... h6
{[%clk 0:00:01.8]} 28. a7 {[%clk 0:00:30.8]} 1-0

[Event "Early-Titled-Tuesday-Blitz-September-05-2023"]
[Site "Chess.com"]
[Date "2023.09.05"]
[Round "9"]
[White "Sjakkerntobi"]
[Black "wannabe2700"]
[Result "0-1"]
[WhiteElo "2482"]
[BlackElo "2624"]
[TimeControl "180+1"]
[EndTime "9:41:51 PDT"]
[Termination "wannabe2700 won on time"]

1. e4 {[%clk 0:03:00.9]} 1... e6 {[%clk 0:02:59.4]} 2. d4 {[%clk 0:03:00.9]}
2... d5 {[%clk 0:02:59.7]} 3. Nc3 {[%clk 0:03:01.6]} 3... Nf6 {[%clk 0:02:59.1]}
4. e5 {[%clk 0:03:01.4]} 4... Nfd7 {[%clk 0:02:59.5]} 5. f4 {[%clk 0:03:01.8]}
5... c5 {[%clk 0:03:00.2]} 6. Nf3 {[%clk 0:03:01.8]} 6... Nc6 {[%clk 0:03:00.9]}
7. Be3 {[%clk 0:03:02.3]} 7... cxd4 {[%clk 0:02:58.4]} 8. Nxd4 {[%clk
0:03:02.3]} 8... Qb6 {[%clk 0:02:59]} 9. Qd2 {[%clk 0:02:55.8]} 9... Qxb2 {[%clk
0:02:58.3]} 10. Rb1 {[%clk 0:02:55.5]} 10... Qa3 {[%clk 0:02:58.7]} 11. Bb5
{[%clk 0:02:52.7]} 11... Nxd4 {[%clk 0:02:58]} 12. Bxd4 {[%clk 0:02:52.9]} 12...
a6 {[%clk 0:02:58.4]} 13. Bxd7+ {[%clk 0:02:52.7]} 13... Bxd7 {[%clk 0:02:58.7]}
14. Rb3 {[%clk 0:02:45.7]} 14... Qe7 {[%clk 0:02:58.5]} 15. Rxb7 {[%clk
0:02:45.4]} 15... Rc8 {[%clk 0:02:59.1]} 16. O-O {[%clk 0:02:39.7]} 16... Qd8
{[%clk 0:02:59.1]} 17. f5 {[%clk 0:02:37.4]} 17... exf5 {[%clk 0:03:00]} 18.
Nxd5 {[%clk 0:02:28.5]} 18... Bc6 {[%clk 0:02:42.3]} 19. Nf6+ {[%clk 0:02:03.8]}
19... gxf6 {[%clk 0:02:41.9]} 20. exf6 {[%clk 0:02:04.7]} 20... Bxb7 {[%clk
0:02:28.4]} 21. Qe3+ {[%clk 0:02:00.6]} 21... Be4 {[%clk 0:02:28.4]} 22. Rxf5
{[%clk 0:01:57.2]} 22... Rc6 {[%clk 0:01:46.7]} 23. Qxe4+ {[%clk 0:00:58.5]}
23... Re6 {[%clk 0:01:46.4]} 24. Re5 {[%clk 0:00:58]} 24... Rxe5 {[%clk
0:01:40.5]} 25. Qxe5+ {[%clk 0:00:58.9]} 25... Kd7 {[%clk 0:01:39.7]} 26. Qd5+
{[%clk 0:00:59.2]} 26... Bd6 {[%clk 0:01:39.2]} 27. Qxf7+ {[%clk 0:00:49.3]}
27... Kc6 {[%clk 0:01:38.4]} 28. Qc4+ {[%clk 0:00:48.5]} 28... Kb7 {[%clk
0:01:34.2]} 29. Qd5+ {[%clk 0:00:48.1]} 29... Kc8 {[%clk 0:01:09.3]} 30. Qc6+
{[%clk 0:00:19.5]} 30... Kb8 {[%clk 0:01:07.5]} 31. Bb6 {[%clk 0:00:12.6]} 31...
Bc7 {[%clk 0:01:04]} 32. Be3 {[%clk 0:00:02.6]} 32... Qd6 {[%clk 0:00:57.5]} 33.
Qc4 {[%clk 0:00:02.4]} 33... Rd8 {[%clk 0:00:42.5]} 34. Qb3+ {[%clk 0:00:02]}
34... Ka8 {[%clk 0:00:41.5]} 0-1

[Event "Early-Titled-Tuesday-Blitz-September-05-2023"]
[Site "Chess.com"]
[Date "2023.09.05"]
[Round "9"]
[White "nrvignesh"]
[Black "Kurai"]
[Result "1-0"]
[WhiteElo "2835"]
[BlackElo "2707"]
[TimeControl "180+1"]
[EndTime "9:41:52 PDT"]
[Termination "nrvignesh won by resignation"]

1. Nf3 {[%clk 0:03:00.9]} 1... d5 {[%clk 0:02:59.9]} 2. g3 {[%clk 0:03:00.9]}
2... Nf6 {[%clk 0:03:00.5]} 3. Bg2 {[%clk 0:03:01.1]} 3... e6 {[%clk 0:03:01.2]}
4. O-O {[%clk 0:03:01.1]} 4... Be7 {[%clk 0:03:01.8]} 5. d4 {[%clk 0:02:57.8]}
5... O-O {[%clk 0:03:02.2]} 6. c4 {[%clk 0:02:57.8]} 6... dxc4 {[%clk
0:03:03.1]} 7. Qc2 {[%clk 0:02:57.9]} 7... a6 {[%clk 0:03:03.7]} 8. a4 {[%clk
0:02:58.1]} 8... Bd7 {[%clk 0:03:04.2]} 9. Qxc4 {[%clk 0:02:58.4]} 9... Bc6
{[%clk 0:03:04.6]} 10. Bg5 {[%clk 0:02:58]} 10... Nbd7 {[%clk 0:03:04.4]} 11.
Nc3 {[%clk 0:02:57.5]} 11... h6 {[%clk 0:03:01.9]} 12. Bxf6 {[%clk 0:02:57.5]}
12... Nxf6 {[%clk 0:03:02.8]} 13. Ne5 {[%clk 0:02:57.7]} 13... Bxg2 {[%clk
0:03:02.3]} 14. Kxg2 {[%clk 0:02:57.6]} 14... a5 {[%clk 0:03:00.6]} 15. Rfd1
{[%clk 0:02:57.1]} 15... c6 {[%clk 0:03:00.3]} 16. Qb3 {[%clk 0:02:49.6]} 16...
Ra7 {[%clk 0:02:41.3]} 17. e3 {[%clk 0:02:48.6]} 17... Nd5 {[%clk 0:02:35.8]}
18. Rac1 {[%clk 0:02:40.4]} 18... Nb4 {[%clk 0:02:30.2]} 19. h4 {[%clk
0:02:39.9]} 19... Ra8 {[%clk 0:02:27.4]} 20. Nd3 {[%clk 0:02:38.7]} 20... Qb6
{[%clk 0:02:17.3]} 21. Ne4 {[%clk 0:02:34.6]} 21... Rad8 {[%clk 0:02:09.5]} 22.
Nec5 {[%clk 0:02:33.1]} 22... Bxc5 {[%clk 0:02:07.4]} 23. dxc5 {[%clk
0:02:31.5]} 23... Qa7 {[%clk 0:01:51.4]} 24. Nxb4 {[%clk 0:02:31]} 24... Rxd1
{[%clk 0:01:51.2]} 25. Rxd1 {[%clk 0:02:25.9]} 25... axb4 {[%clk 0:01:51]} 26.
Qxb4 {[%clk 0:02:26.8]} 26... Ra8 {[%clk 0:01:40.9]} 27. b3 {[%clk 0:02:25.7]}
27... Qa6 {[%clk 0:01:31.8]} 28. Rd7 {[%clk 0:02:23.8]} 28... Rb8 {[%clk
0:01:31.7]} 29. Rxf7 {[%clk 0:02:21.1]} 29... Qd3 {[%clk 0:01:26]} 30. Rc7
{[%clk 0:02:04]} 30... Rf8 {[%clk 0:01:21.7]} 31. Qd4 {[%clk 0:01:59.7]} 31...
Qg6 {[%clk 0:01:18.2]} 32. Rd7 {[%clk 0:01:56.9]} 32... Kh7 {[%clk 0:01:08.4]}
33. h5 {[%clk 0:01:48.7]} 33... Qg5 {[%clk 0:01:06.2]} 34. f4 {[%clk 0:01:48.2]}
34... Qg4 {[%clk 0:01:05.2]} 35. Qe4+ {[%clk 0:01:40.1]} 35... Rf5 {[%clk
0:01:03.6]} 36. Qf3 {[%clk 0:01:40]} 36... Qxh5 {[%clk 0:00:57.9]} 37. Qxh5
{[%clk 0:01:36]} 37... Rxh5 {[%clk 0:00:58.8]} 38. b4 {[%clk 0:01:35.4]} 38...
Rd5 {[%clk 0:00:43.8]} 39. Rxb7 {[%clk 0:01:26.7]} 39... e5 {[%clk 0:00:38]} 40.
a5 {[%clk 0:01:24.9]} 40... e4 {[%clk 0:00:36.8]} 41. Re7 {[%clk 0:01:24]} 41...
Rd2+ {[%clk 0:00:29.3]} 42. Kh3 {[%clk 0:01:23.6]} 42... h5 {[%clk 0:00:22.5]}
43. Rxe4 {[%clk 0:01:22.7]} 43... g5 {[%clk 0:00:22.5]} 44. fxg5 {[%clk
0:01:21.7]} 44... Kg6 {[%clk 0:00:23.1]} 45. Re6+ {[%clk 0:01:20.4]} 45... Kxg5
{[%clk 0:00:22.5]} 46. Rxc6 {[%clk 0:01:21.1]} 46... Rd1 {[%clk 0:00:22.4]} 47.
a6 {[%clk 0:01:20.5]} 47... Ra1 {[%clk 0:00:22]} 48. b5 {[%clk 0:01:19.6]} 48...
Ra3 {[%clk 0:00:22.5]} 49. Rc8 {[%clk 0:01:17.9]} 49... h4 {[%clk 0:00:17.5]}
50. gxh4+ {[%clk 0:01:15.1]} 50... Kf5 {[%clk 0:00:17.2]} 51. Re8 {[%clk
0:01:14.5]} 1-0

[Event "Early-Titled-Tuesday-Blitz-September-05-2023"]
[Site "Chess.com"]
[Date "2023.09.05"]
[Round "9"]
[White "Beca95"]
[Black "Alexander_Donchenko"]
[Result "1/2-1/2"]
[WhiteElo "2978"]
[BlackElo "2859"]
[TimeControl "180+1"]
[EndTime "9:41:55 PDT"]
[Termination "Game drawn by repetition"]

1. d4 {[%clk 0:03:00.9]} 1... Nf6 {[%clk 0:02:59.3]} 2. c4 {[%clk 0:03:01.6]}
2... e6 {[%clk 0:02:59.6]} 3. Nc3 {[%clk 0:03:01.6]} 3... d5 {[%clk 0:02:59.9]}
4. Nf3 {[%clk 0:03:00.9]} 4... Bb4 {[%clk 0:02:59.6]} 5. Bg5 {[%clk 0:02:57.2]}
5... h6 {[%clk 0:02:59.2]} 6. Bxf6 {[%clk 0:02:57.3]} 6... Qxf6 {[%clk
0:02:59.9]} 7. e3 {[%clk 0:02:57.3]} 7... O-O {[%clk 0:02:59]} 8. Rc1 {[%clk
0:02:57.6]} 8... dxc4 {[%clk 0:02:58]} 9. Bxc4 {[%clk 0:02:58.5]} 9... c5 {[%clk
0:02:58.6]} 10. O-O {[%clk 0:02:54.2]} 10... cxd4 {[%clk 0:02:58.7]} 11. Ne4
{[%clk 0:02:54.2]} 11... Qe7 {[%clk 0:02:58.9]} 12. a3 {[%clk 0:02:54.5]} 12...
Ba5 {[%clk 0:02:59.5]} 13. Qxd4 {[%clk 0:02:54.2]} 13... Rd8 {[%clk 0:02:54.7]}
14. Qe5 {[%clk 0:02:48.9]} 14... Bb6 {[%clk 0:02:51]} 15. g4 {[%clk 0:02:35.8]}
15... Nd7 {[%clk 0:02:45.1]} 16. Qf4 {[%clk 0:02:35.5]} 16... Nf6 {[%clk
0:02:43.1]} 17. Nxf6+ {[%clk 0:02:35]} 17... Qxf6 {[%clk 0:02:43.1]} 18. Qxf6
{[%clk 0:02:35.2]} 18... gxf6 {[%clk 0:02:44]} 19. Rfd1 {[%clk 0:02:34]} 19...
Bd7 {[%clk 0:02:42]} 20. Nd4 {[%clk 0:02:13.8]} 20... Rac8 {[%clk 0:02:35]} 21.
Bb3 {[%clk 0:02:10.8]} 21... Rxc1 {[%clk 0:02:31.3]} 22. Rxc1 {[%clk 0:02:10.2]}
22... Bxd4 {[%clk 0:02:31.5]} 23. exd4 {[%clk 0:02:10.9]} 23... Bc6 {[%clk
0:02:32.1]} 24. Rd1 {[%clk 0:02:02.8]} 24... Kf8 {[%clk 0:02:19.3]} 25. h3
{[%clk 0:02:01.2]} 25... Ke7 {[%clk 0:02:18.1]} 26. f4 {[%clk 0:02:00.8]} 26...
h5 {[%clk 0:02:16.1]} 27. Kf2 {[%clk 0:02:00.2]} 27... hxg4 {[%clk 0:02:11.4]}
28. hxg4 {[%clk 0:02:01.1]} 28... a5 {[%clk 0:02:00.7]} 29. Kg3 {[%clk
0:01:56.1]} 29... Be4 {[%clk 0:01:57.9]} 30. f5 {[%clk 0:01:25.7]} 30... exf5
{[%clk 0:01:37.5]} 31. Kf4 {[%clk 0:01:25.4]} 31... Bd5 {[%clk 0:01:17.3]} 32.
Bxd5 {[%clk 0:01:23.4]} 32... Rxd5 {[%clk 0:01:18.2]} 33. gxf5 {[%clk
0:01:22.2]} 33... Rb5 {[%clk 0:01:18.8]} 34. Rd2 {[%clk 0:01:20.4]} 34... Rb3
{[%clk 0:01:17.4]} 35. Ke4 {[%clk 0:01:18.8]} 35... Kd6 {[%clk 0:01:17.4]} 36.
Rc2 {[%clk 0:01:18.5]} 36... b6 {[%clk 0:01:14]} 37. Rh2 {[%clk 0:01:17.5]}
37... Rb5 {[%clk 0:01:10.5]} 38. b4 {[%clk 0:00:43.2]} 38... axb4 {[%clk
0:01:05.3]} 39. axb4 {[%clk 0:00:35.8]} 39... Rxb4 {[%clk 0:01:04.8]} 40. Rh8
{[%clk 0:00:35.2]} 40... Rb1 {[%clk 0:01:02.4]} 41. Rd8+ {[%clk 0:00:34.7]}
41... Ke7 {[%clk 0:00:58.3]} 42. Rb8 {[%clk 0:00:34.5]} 42... Kd6 {[%clk
0:00:43.3]} 43. Rb7 {[%clk 0:00:32.4]} 43... Re1+ {[%clk 0:00:42.4]} 44. Kd3
{[%clk 0:00:32.6]} 44... Rd1+ {[%clk 0:00:39.9]} 45. Ke4 {[%clk 0:00:32.4]}
45... Re1+ {[%clk 0:00:36.2]} 46. Kd3 {[%clk 0:00:32.5]} 46... Rd1+ {[%clk
0:00:36.6]} 47. Ke4 {[%clk 0:00:31.6]} 47... Re1+ {[%clk 0:00:35.3]} 1/2-1/2

[Event "Early-Titled-Tuesday-Blitz-September-05-2023"]
[Site "Chess.com"]
[Date "2023.09.05"]
[Round "9"]
[White "JaloliddinIlkhomi"]
[Black "Tsyhanchuk_Stanislav"]
[Result "1-0"]
[WhiteElo "2574"]
[BlackElo "2421"]
[TimeControl "180+1"]
[EndTime "9:41:55 PDT"]
[Termination "JaloliddinIlkhomi won by resignation"]

1. d4 {[%clk 0:02:56.6]} 1... Nf6 {[%clk 0:02:59.7]} 2. Nf3 {[%clk 0:02:56.2]}
2... e6 {[%clk 0:02:58.5]} 3. c3 {[%clk 0:02:56.5]} 3... d5 {[%clk 0:02:58.4]}
4. Bf4 {[%clk 0:02:56.5]} 4... Bd6 {[%clk 0:02:57.8]} 5. Bg3 {[%clk 0:02:55.1]}
5... O-O {[%clk 0:02:57.7]} 6. e3 {[%clk 0:02:55.3]} 6... c5 {[%clk 0:02:57.9]}
7. Nbd2 {[%clk 0:02:55.6]} 7... Nc6 {[%clk 0:02:58.3]} 8. Bd3 {[%clk 0:02:52.2]}
8... b6 {[%clk 0:02:58]} 9. Ne5 {[%clk 0:02:52.5]} 9... Bb7 {[%clk 0:02:52.5]}
10. f4 {[%clk 0:02:52.3]} 10... Ne7 {[%clk 0:02:47.9]} 11. Qb1 {[%clk
0:02:51.6]} 11... g6 {[%clk 0:02:40.4]} 12. O-O {[%clk 0:02:46.9]} 12... Nf5
{[%clk 0:02:37.3]} 13. Bf2 {[%clk 0:02:47.1]} 13... h5 {[%clk 0:02:25.4]} 14.
Qd1 {[%clk 0:02:40.3]} 14... Ne4 {[%clk 0:02:12.5]} 15. Qe2 {[%clk 0:02:26.8]}
15... a6 {[%clk 0:02:00.6]} 16. Rad1 {[%clk 0:02:25.7]} 16... b5 {[%clk
0:02:00.4]} 17. Bxe4 {[%clk 0:02:20.4]} 17... dxe4 {[%clk 0:01:55.4]} 18. g4
{[%clk 0:02:20.3]} 18... hxg4 {[%clk 0:01:45.3]} 19. Qxg4 {[%clk 0:02:21.2]}
19... Bxe5 {[%clk 0:01:43.6]} 20. dxe5 {[%clk 0:02:20.3]} 20... Qd3 {[%clk
0:01:32.5]} 21. Nb3 {[%clk 0:02:15]} 21... Nxe3 {[%clk 0:01:29.4]} 22. Rxd3
{[%clk 0:02:11.9]} 22... Nxg4 {[%clk 0:01:29.2]} 23. Rd7 {[%clk 0:02:12.5]}
23... e3 {[%clk 0:01:05.7]} 24. Bh4 {[%clk 0:01:42.3]} 24... Bd5 {[%clk
0:00:53.7]} 25. Nxc5 {[%clk 0:01:41.9]} 25... Kg7 {[%clk 0:00:16.7]} 26. Re1
{[%clk 0:01:10]} 26... Rh8 {[%clk 0:00:16.2]} 27. Bg3 {[%clk 0:01:10.7]} 27...
Rh3 {[%clk 0:00:11.4]} 28. Kf1 {[%clk 0:00:44.3]} 28... Rah8 {[%clk 0:00:10.9]}
29. Ke2 {[%clk 0:00:44.5]} 29... Rxh2+ {[%clk 0:00:05.3]} 30. Bxh2 {[%clk
0:00:44.3]} 30... Rxh2+ {[%clk 0:00:05.4]} 31. Kd1 {[%clk 0:00:43.1]} 31... Bf3+
{[%clk 0:00:03]} 32. Kc1 {[%clk 0:00:43.1]} 32... e2 {[%clk 0:00:02.1]} 33.
Nxe6+ {[%clk 0:00:43.6]} 33... Kh7 {[%clk 0:00:01.4]} 34. Ng5+ {[%clk
0:00:44.1]} 34... Kh6 {[%clk 0:00:01.8]} 35. Nxf3 {[%clk 0:00:45]} 35... Kh5
{[%clk 0:00:02.4]} 36. Nxh2 {[%clk 0:00:45.2]} 36... Nxh2 {[%clk 0:00:02.2]} 37.
Rxe2 {[%clk 0:00:45.8]} 1-0

[Event "Early-Titled-Tuesday-Blitz-September-05-2023"]
[Site "Chess.com"]
[Date "2023.09.05"]
[Round "9"]
[White "sokidze"]
[Black "Barbus89"]
[Result "1-0"]
[WhiteElo "2764"]
[BlackElo "2558"]
[TimeControl "180+1"]
[EndTime "9:42:01 PDT"]
[Termination "sokidze won on time"]

1. e4 {[%clk 0:03:00.9]} 1... c6 {[%clk 0:02:57.8]} 2. d4 {[%clk 0:02:58.5]}
2... d5 {[%clk 0:02:58.7]} 3. e5 {[%clk 0:02:58.7]} 3... Bf5 {[%clk 0:02:57.3]}
4. Nf3 {[%clk 0:02:58.5]} 4... e6 {[%clk 0:02:57]} 5. Be2 {[%clk 0:02:59.1]}
5... c5 {[%clk 0:02:56.9]} 6. O-O {[%clk 0:02:48.5]} 6... Nc6 {[%clk 0:02:49.8]}
7. c3 {[%clk 0:02:49]} 7... cxd4 {[%clk 0:02:47]} 8. Nxd4 {[%clk 0:02:48.5]}
8... Nge7 {[%clk 0:02:44.3]} 9. Nxf5 {[%clk 0:02:48.5]} 9... Nxf5 {[%clk
0:02:43.7]} 10. Bd3 {[%clk 0:02:49.1]} 10... g6 {[%clk 0:02:26.8]} 11. Qe2
{[%clk 0:02:48.7]} 11... Bc5 {[%clk 0:02:17.5]} 12. Nd2 {[%clk 0:02:37.3]} 12...
Qc7 {[%clk 0:01:58.7]} 13. Nf3 {[%clk 0:02:33.4]} 13... O-O-O {[%clk 0:01:58.1]}
14. b4 {[%clk 0:02:29.7]} 14... Be7 {[%clk 0:01:46.6]} 15. a3 {[%clk 0:02:23.9]}
15... Kb8 {[%clk 0:01:41.1]} 16. Bb2 {[%clk 0:01:52.2]} 16... h5 {[%clk
0:01:27.1]} 17. Rac1 {[%clk 0:01:50.1]} 17... g5 {[%clk 0:00:55.1]} 18. Bxf5
{[%clk 0:01:22.6]} 18... exf5 {[%clk 0:00:56]} 19. c4 {[%clk 0:01:22.8]} 19...
d4 {[%clk 0:00:37.9]} 20. Rfd1 {[%clk 0:01:04.3]} 20... g4 {[%clk 0:00:13.5]}
21. Nxd4 {[%clk 0:01:04.2]} 21... Nxd4 {[%clk 0:00:14.2]} 22. Bxd4 {[%clk
0:01:00.4]} 22... Bg5 {[%clk 0:00:10.2]} 23. Rb1 {[%clk 0:00:52]} 23... Rhe8
{[%clk 0:00:08.3]} 24. b5 {[%clk 0:00:39]} 24... Ka8 {[%clk 0:00:07]} 25. b6
{[%clk 0:00:30.9]} 25... Qc6 {[%clk 0:00:05.2]} 26. bxa7 {[%clk 0:00:30.6]}
26... h4 {[%clk 0:00:04.7]} 27. Rb6 {[%clk 0:00:18.5]} 27... Qc7 {[%clk
0:00:02.1]} 28. Rd6 {[%clk 0:00:18]} 1-0

[Event "Early-Titled-Tuesday-Blitz-September-05-2023"]
[Site "Chess.com"]
[Date "2023.09.05"]
[Round "9"]
[White "wonderfultime"]
[Black "Hikaru"]
[Result "1-0"]
[WhiteElo "3018"]
[BlackElo "3242"]
[TimeControl "180+1"]
[EndTime "9:42:03 PDT"]
[Termination "wonderfultime won by checkmate"]

1. d4 {[%clk 0:02:56.5]} 1... a6 {[%clk 0:02:50.6]} 2. e4 {[%clk 0:02:52.2]}
2... c6 {[%clk 0:02:49.3]} 3. Bd3 {[%clk 0:02:46.8]} 3... d5 {[%clk 0:02:49.4]}
4. exd5 {[%clk 0:02:39.4]} 4... cxd5 {[%clk 0:02:48.4]} 5. Bf4 {[%clk
0:02:39.8]} 5... Nc6 {[%clk 0:02:47]} 6. c3 {[%clk 0:02:39.4]} 6... g6 {[%clk
0:02:47.2]} 7. Nd2 {[%clk 0:02:34.9]} 7... Bf5 {[%clk 0:02:47.2]} 8. Bxf5 {[%clk
0:02:08.2]} 8... gxf5 {[%clk 0:02:48.1]} 9. Qb3 {[%clk 0:02:08.7]} 9... b5
{[%clk 0:02:38.5]} 10. Ngf3 {[%clk 0:02:07.1]} 10... e6 {[%clk 0:02:38]} 11. Ne5
{[%clk 0:02:00.2]} 11... Nge7 {[%clk 0:02:34.6]} 12. Ndf3 {[%clk 0:01:55.9]}
12... f6 {[%clk 0:02:23.5]} 13. Nd3 {[%clk 0:01:52.6]} 13... Ng6 {[%clk
0:02:21.9]} 14. O-O {[%clk 0:01:49.7]} 14... Kf7 {[%clk 0:02:13.8]} 15. Rfe1
{[%clk 0:01:47]} 15... Be7 {[%clk 0:02:05.7]} 16. a4 {[%clk 0:01:44.9]} 16...
Qb6 {[%clk 0:01:32.7]} 17. Re2 {[%clk 0:01:21.4]} 17... Rhe8 {[%clk 0:01:27]}
18. Rae1 {[%clk 0:01:20.2]} 18... Bf8 {[%clk 0:01:25.4]} 19. h4 {[%clk
0:01:20.5]} 19... h5 {[%clk 0:01:15.5]} 20. Bg3 {[%clk 0:01:15.3]} 20... b4
{[%clk 0:01:03.8]} 21. Nd2 {[%clk 0:01:02.2]} 21... Rac8 {[%clk 0:00:53.5]} 22.
Qd1 {[%clk 0:00:55.8]} 22... bxc3 {[%clk 0:00:47.8]} 23. bxc3 {[%clk 0:00:56.7]}
23... Nd8 {[%clk 0:00:39.9]} 24. Nb1 {[%clk 0:00:54.3]} 24... Bg7 {[%clk
0:00:19.7]} 25. Rb2 {[%clk 0:00:54.7]} 25... Qc6 {[%clk 0:00:19.4]} 26. a5
{[%clk 0:00:52.5]} 26... Qc4 {[%clk 0:00:14.6]} 27. Rb4 {[%clk 0:00:48.6]} 27...
Qa2 {[%clk 0:00:14.8]} 28. Ra4 {[%clk 0:00:46.8]} 28... Qxa4 {[%clk 0:00:09.9]}
29. Qxa4 {[%clk 0:00:47.7]} 29... Nc6 {[%clk 0:00:10.4]} 30. Nd2 {[%clk
0:00:45.9]} 30... Bh6 {[%clk 0:00:10.6]} 31. Nb3 {[%clk 0:00:46.1]} 31... f4
{[%clk 0:00:11.5]} 32. Bh2 {[%clk 0:00:46.7]} 32... e5 {[%clk 0:00:12.1]} 33.
dxe5 {[%clk 0:00:47]} 33... fxe5 {[%clk 0:00:13]} 34. Nbc5 {[%clk 0:00:44.3]}
34... e4 {[%clk 0:00:13.4]} 35. Nb4 {[%clk 0:00:42.3]} 35... Nce5 {[%clk
0:00:14.1]} 36. Nb7 {[%clk 0:00:38]} 36... Ke6 {[%clk 0:00:09.7]} 37. Nxd5
{[%clk 0:00:37.4]} 37... Kxd5 {[%clk 0:00:05.6]} 38. Qxe4+ {[%clk 0:00:37.9]}
38... Ke6 {[%clk 0:00:06.5]} 39. Qxg6+ {[%clk 0:00:38.4]} 39... Kd7 {[%clk
0:00:07.4]} 40. Qd6# {[%clk 0:00:38.2]} 1-0